fUSD/lending_fUSD_20241219
["ID","MTS","AMOUNT","RATE_DAILY","PERIOD"]
[346009526,1734622980057,-500.0,0.00023285,4]
[346009527,1734622980082,-500.0,0.00023285,4]
[346009528,1734622980106,-500.0,0.00023285,4]
[346009529,1734622980130,-646.23,0.00023286,4]
[346009530,1734622980155,-500.0,0.00023286,4]
[346009531,1734622980179,-500.0,0.00023286,4]
[346009532,1734622980203,-500.0,0.00023286,4]
[346009533,1734622980228,-500.0,0.00023286,4]
[346009534,1734622980253,-500.0,0.00023286,4]
[346009535,1734622980282,-500.0,0.00023286,4]
[346009536,1734622980306,-500.0,0.00023286,4]
[346009537,1734622980330,-500.0,0.00023286,4]
[346009538,1734622980355,-399.76577399,0.00023286,4]
[346009539,1734622980381,-1342.54,0.00023286,4]
[346009540,1734622980407,-500.0,0.00023286,4]
[346009541,1734622980434,-659.49,0.00023286,4]
[346009542,1734622980458,-1281.1,0.00023286,4]
[346009543,1734622980485,-500.0,0.00023286,4]
[346009544,1734622980511,-500.0,0.00023286,4]
[346009545,1734622980536,-500.0,0.00023286,4]
[346009546,1734622980560,-500.0,0.00023286,4]
[346009547,1734622980585,-500.0,0.00023286,4]
[346009548,1734622980609,-500.0,0.00023286,4]
[346009549,1734622980634,-500.0,0.00023286,4]
[346009550,1734622980659,-500.0,0.00023286,4]
[346009551,1734622980683,-500.0,0.00023286,4]
[346009552,1734622980707,-221.26292747,0.00023287,4]
[346009553,1734622980731,-316.71,0.00023287,4]
[346009554,1734622980755,-325.355908,0.00023287,4]
[346009555,1734622980785,-500.0,0.00023287,4]
[346009556,1734622980809,-500.0,0.00023287,4]
[346009557,1734622980832,-568.67,0.00023287,4]
[346009558,1734622980856,-500.0,0.00023287,4]
[346009559,1734622980882,-635.34258926,0.00023287,4]
[346009560,1734622980906,-663.68,0.00023287,4]
[346009561,1734622980932,-500.0,0.00023287,4]
[346009562,1734622980957,-500.0,0.00023287,4]
[346009563,1734622980982,-711.82,0.00023287,4]
[346009564,1734622981006,-645.5230178,0.00023287,4]
[346009565,1734622981032,-500.0,0.00023287,4]
[346009566,1734622981058,-500.0,0.00023287,4]
[346009567,1734622981083,-500.0,0.00023287,4]
[346009568,1734622981109,-500.0,0.00023287,4]
[346009569,1734622981135,-500.0,0.00023287,4]
[346009570,1734622981161,-888.75,0.00023287,4]
[346009571,1734622981187,-500.0,0.00023287,4]
[346009572,1734622981211,-500.0,0.00023287,4]
[346009573,1734622981235,-500.0,0.00023287,4]
[346009574,1734622981260,-500.0,0.00023287,4]
[346009575,1734622981285,-516.95,0.00023287,4]
[346009576,1734622981310,-993.33,0.00023287,4]
[346009577,1734622981335,-1538.15,0.00023287,4]
[346009578,1734622981358,-529.81669806,0.00023287,4]
[346009579,1734622981382,-276.04581,0.00023288,7]
[346009580,1734622981408,-13560.91500289,0.00023327,2]
[346009581,1734622981435,-500.0,0.00023356,2]
[346009582,1734622981459,-150.0,0.0002337,2]
[346009583,1734622981484,-150.0,0.0002337,2]
[346009584,1734622981513,-364.93,0.0002337,2]
[346009585,1734622981537,-309.52,0.0002337,2]
[346009586,1734622981562,-330.56,0.0002337,2]
[346009587,1734622981586,-300.0,0.0002337,2]
[346009588,1734622981610,-364.93,0.0002337,2]
[346009589,1734622981634,-362.74,0.0002337,2]
[346009590,1734622981657,-208.0,0.0002337,2]
[346009591,1734622981682,-276.04581,0.00023488,7]
[346009592,1734622981706,-696.14124262,0.0002349,2]
[346009593,1734622981730,-1000.0,0.00023499,2]
[346009594,1734622981755,-150.0,0.00023499,2]
[346009595,1734622981787,-769033.49607127,0.000235,4]
[346009596,1734622981813,-65311.70122643,0.000235,2]
[346009597,1734622981839,-15913.40666031,0.000235,4]
[346009598,1734622981865,-2000.0,0.000235,2]
[346009599,1734622981890,-200.0,0.000235,2]
[346009600,1734622981917,-13560.91500289,0.00023534,2]
[346009601,1734622981943,-560.36,0.00023559,4]
[346009602,1734622981969,-500.0,0.00023559,4]
[346009603,1734622981995,-500.0,0.00023559,4]
[346009604,1734622982028,-903.37,0.00023559,4]
[346009605,1734622982053,-500.0,0.00023559,4]
[346009606,1734622982079,-640.87587726,0.00023559,4]
[346009607,1734622982106,-578.46,0.00023559,4]
[346009608,1734622982132,-234.11621069,0.00023559,4]
[346009609,1734622982158,-500.0,0.00023559,4]
[346009610,1734622982185,-500.0,0.00023559,4]
[346009611,1734622982215,-500.0,0.00023559,4]
[346009612,1734622982242,-622.19927108,0.00023559,4]
[346009613,1734622982272,-500.0,0.00023559,4]
[346009614,1734622982299,-500.0,0.00023559,4]
[346009615,1734622982325,-646.23,0.0002356,4]
[346009616,1734622982352,-232.03934823,0.0002356,4]
[346009617,1734622982379,-500.0,0.0002356,4]
[346009618,1734622982406,-500.0,0.0002356,4]
[346009619,1734622982434,-500.0,0.0002356,4]
[346009620,1734622982462,-500.0,0.0002356,4]
[346009621,1734622982491,-500.0,0.0002356,4]
[346009622,1734622982527,-446.17269227,0.0002356,4]
[346009623,1734622982555,-649.54,0.0002356,4]
[346009624,1734622982585,-1342.54,0.0002356,4]
[346009625,1734622982613,-500.0,0.0002356,4]
[346009626,1734622982640,-659.49,0.0002356,4]
[346009627,1734622982669,-1281.1,0.0002356,4]
[346009628,1734622982697,-500.0,0.0002356,4]
[346009629,1734622982724,-500.0,0.0002356,4]
[346009630,1734622982751,-500.0,0.0002356,4]
[346009631,1734622982781,-500.0,0.0002356,4]
[346009632,1734622982808,-500.0,0.0002356,4]
[346009633,1734622982835,-500.0,0.0002356,4]
[346009634,1734622982861,-500.0,0.0002356,4]
[346009635,1734622982889,-500.0,0.0002356,4]
[346009636,1734622982916,-500.0,0.0002356,4]
[346009637,1734622982943,-500.0,0.00023561,4]
[346009638,1734622982970,-500.0,0.00023561,4]
[346009639,1734622982996,-345.13665279,0.00023561,4]
[346009640,1734622983028,-568.67,0.00023561,4]
[346009641,1734622983057,-500.0,0.00023561,4]
[346009642,1734622983084,-663.68,0.00023561,4]
[346009643,1734622983112,-500.0,0.00023561,4]
[346009644,1734622983140,-500.0,0.00023561,4]
[346009645,1734622983170,-711.82,0.00023561,4]
[346009646,1734622983198,-500.0,0.00023561,4]
[346009647,1734622983226,-500.0,0.00023561,4]
[346009648,1734622983253,-500.0,0.00023561,4]
[346009649,1734622983282,-500.0,0.00023561,4]
[346009650,1734622983311,-500.0,0.00023561,4]
[346009651,1734622983340,-888.75,0.00023561,4]
[346009652,1734622983555,-500.0,0.00023561,4]
[346009653,1734622983583,-500.0,0.00023561,4]
[346009654,1734622983610,-500.0,0.00023561,4]
[346009655,1734622983637,-500.0,0.00023561,4]
[346009656,1734622983663,-516.95,0.00023561,4]
[346009657,1734622983689,-993.33,0.00023561,4]
[346009658,1734622983716,-1538.15,0.00023561,4]
[346009659,1734622983742,-1500.0,0.000236,2]
[346009660,1734622983771,-462.7431675,0.00023633,2]
[346009661,1734622983796,-150.0,0.00023636,2]
[346009662,1734622983825,-151.12080696,0.00023671,2]
[346009663,1734622983855,-337.47,0.00023687,2]
[346009664,1734622983884,-276.04581,0.00023688,7]
[346009665,1734622983911,-152.0,0.00023694,3]
[346009666,1734622983940,-900.0,0.000237,8]
[346009667,1734622983968,-2000.0,0.00023735,2]
[346009668,1734622983994,-200.0,0.00023735,2]
[346009669,1734622984022,-13560.91500289,0.00023741,2]
[346009670,1734622984048,-183.57,0.00023744,2]
[346009671,1734622984073,-208.0,0.0002378,2]
[346009672,1734622984103,-1300.0,0.000238,8]
[346009673,1734622984130,-300.0,0.000238,8]
[346009674,1734622984158,-560.36,0.00023833,4]
[346009675,1734622984185,-500.0,0.00023833,4]
[346009676,1734622984212,-500.0,0.00023833,4]
[346009677,1734622984239,-903.37,0.00023833,4]
[346009678,1734622984268,-500.0,0.00023833,4]
[346009679,1734622984295,-578.46,0.00023833,4]
[346009680,1734622984321,-500.0,0.00023833,4]
[346009681,1734622984348,-500.0,0.00023833,4]
[346009682,1734622984375,-500.0,0.00023833,4]
[346009683,1734622984403,-500.0,0.00023833,4]
[346009684,1734622984437,-500.0,0.00023833,4]
[346009685,1734622984465,-646.23,0.00023834,4]
[346009686,1734622984493,-500.0,0.00023834,4]
[346009687,1734622984522,-500.0,0.00023834,4]
[346009688,1734622984548,-500.0,0.00023834,4]
[346009689,1734622984575,-500.0,0.00023834,4]
[346009690,1734622984601,-607.66079476,0.00023834,4]
[346009691,1734622984627,-1342.54,0.00023834,4]
[346009692,1734622984652,-161.74213256,0.00023834,4]
[346009693,1734622984678,-659.49,0.00023834,4]
[346009694,1734622984703,-1281.1,0.00023834,4]
[346009695,1734622984729,-500.0,0.00023834,4]
[346009696,1734622984755,-500.0,0.00023834,4]
[346009697,1734622984783,-500.0,0.00023834,4]
[346009698,1734622984808,-500.0,0.00023834,4]
[346009699,1734622984835,-500.0,0.00023834,4]
[346009700,1734622984863,-500.0,0.00023834,4]
[346009701,1734622984889,-500.0,0.00023834,4]
[346009702,1734622984914,-500.0,0.00023834,4]
[346009703,1734622984938,-500.0,0.00023834,4]
[346009704,1734622984962,-500.0,0.00023835,4]
[346009705,1734622984987,-500.0,0.00023835,4]
[346009706,1734622985015,-568.67,0.00023835,4]
[346009707,1734622985039,-500.0,0.00023835,4]
[346009708,1734622985064,-663.68,0.00023835,4]
[346009709,1734622985100,-500.0,0.00023835,4]
[346009710,1734622985124,-500.0,0.00023835,4]
[346009711,1734622985149,-711.82,0.00023835,4]
[346009712,1734622985174,-412.6285681,0.00023835,4]
[346009713,1734622985199,-500.0,0.00023835,4]
[346009714,1734622985224,-500.0,0.00023835,4]
[346009715,1734622985250,-500.0,0.00023835,4]
[346009716,1734622985280,-500.0,0.00023835,4]
[346009717,1734622985306,-888.75,0.00023835,4]
[346009718,1734622985331,-500.0,0.00023835,4]
[346009719,1734622985356,-500.0,0.00023835,4]
[346009720,1734622985381,-500.0,0.00023835,4]
[346009721,1734622985407,-500.0,0.00023835,4]
[346009722,1734622985433,-516.95,0.00023835,4]
[346009723,1734622985457,-993.33,0.00023835,4]
[346009724,1734622985483,-1538.15,0.00023835,4]
[346009725,1734622985508,-1600.0,0.000239,8]
[346009726,1734622985537,-600.0,0.000239,8]
[346009727,1734622985562,-470.98,0.00023904,2]
[346009728,1734622985588,-13560.91500289,0.00023949,2]
[346009729,1734622985612,-200.0,0.00023972,2]
[346009730,1734622985636,-151.12080696,0.00023973,2]
[346009731,1734622985659,-500.0,0.00023974,2]
[346009732,1734622985683,-1000.0,0.00023995,2]
[346009733,1734622985707,-363.32062561,0.00023999,2]
[346009734,1734622985730,-109405.72714982,0.00024,14]
[346009735,1734622985754,-10000.0,0.00024,2]
[346009736,1734622985782,-168.53,0.00024025,2]
[346009737,1734622985806,-1197.0,0.00024047,2]
[346009738,1734622985830,-462.7431675,0.00024055,2]
[346009739,1734622985853,-276.04581,0.00024088,7]
[346009740,1734622985878,-1000.0,0.000241,8]
[346009741,1734622985903,-560.36,0.00024107,4]
[346009742,1734622985927,-500.0,0.00024107,4]
[346009743,1734622985951,-500.0,0.00024107,4]
[346009744,1734622985977,-903.37,0.00024107,4]
[346009745,1734622986039,-500.0,0.00024107,4]
[346009746,1734622986063,-578.46,0.00024107,4]
[346009747,1734622986087,-500.0,0.00024107,4]
[346009748,1734622986112,-500.0,0.00024107,4]
[346009749,1734622986135,-500.0,0.00024107,4]
[346009750,1734622986159,-500.0,0.00024107,4]
[346009751,1734622986182,-500.0,0.00024107,4]
[346009752,1734622986206,-646.23,0.00024108,4]
[346009753,1734622986228,-500.0,0.00024108,4]
[346009754,1734622986252,-384.96,0.00024108,4]
[346009755,1734622986277,-500.0,0.00024108,4]
[346009756,1734622986300,-500.0,0.00024108,4]
[346009757,1734622986325,-1342.54,0.00024108,4]
[346009758,1734622986347,-659.49,0.00024108,4]
[346009759,1734622986372,-1281.1,0.00024108,4]
[346009760,1734622986397,-500.0,0.00024108,4]
[346009761,1734622986422,-500.0,0.00024108,4]
[346009762,1734622986451,-500.0,0.00024108,4]
[346009763,1734622986475,-312.89389354,0.00024108,4]
[346009764,1734622986498,-500.0,0.00024108,4]
[346009765,1734622986528,-500.0,0.00024108,4]
[346009766,1734622986553,-488.26003085,0.00024108,4]
[346009767,1734622986579,-500.0,0.00024108,4]
[346009768,1734622986603,-559.60181788,0.00024108,4]
[346009769,1734622986626,-500.0,0.00024109,4]
[346009770,1734622986652,-500.0,0.00024109,4]
[346009771,1734622986676,-568.67,0.00024109,4]
[346009772,1734622986700,-500.0,0.00024109,4]
[346009773,1734622986728,-663.68,0.00024109,4]
[346009774,1734622986753,-500.0,0.00024109,4]
[346009775,1734622986777,-500.0,0.00024109,4]
[346009776,1734622986801,-711.82,0.00024109,4]
[346009777,1734622986824,-500.0,0.00024109,4]
[346009778,1734622986848,-500.0,0.00024109,4]
[346009779,1734622986871,-500.0,0.00024109,4]
[346009780,1734622986894,-500.0,0.00024109,4]
[346009781,1734622986918,-888.75,0.00024109,4]
[346009782,1734622986942,-500.0,0.00024109,4]
[346009783,1734622986966,-500.0,0.00024109,4]
[346009784,1734622986988,-500.0,0.00024109,4]
[346009785,1734622987011,-382.76749154,0.00024109,4]
[346009786,1734622987036,-516.95,0.00024109,4]
[346009787,1734622987059,-993.33,0.00024109,4]
[346009788,1734622987082,-1538.15,0.00024109,4]
[346009789,1734622987105,-13560.91500289,0.00024156,2]
[346009790,1734622987128,-208.0,0.0002418,2]
[346009791,1734622987151,-1000.0,0.000242,2]
[346009792,1734622987176,-1300.0,0.000242,8]
[346009793,1734622987200,-200.0,0.00024212,2]
[346009794,1734622987225,-150.0,0.00024218,2]
[346009795,1734622987249,-150.0,0.00024218,2]
[346009796,1734622987277,-150.0,0.00024221,2]
[346009797,1734622987302,-150.0,0.00024221,2]
[346009798,1734622987328,-150.0,0.00024224,2]
[346009799,1734622987354,-150.0,0.00024224,2]
[346009800,1734622987383,-150.0,0.00024224,2]
[346009801,1734622987414,-150.0,0.00024229,2]
[346009802,1734622987439,-150.0,0.0002423,2]
[346009803,1734622987465,-150.0,0.00024231,2]
[346009804,1734622987493,-150.0,0.00024231,2]
[346009805,1734622987525,-150.0,0.00024237,2]
[346009806,1734622987552,-150.0,0.00024237,2]
[346009807,1734622987583,-150.0,0.00024241,2]
[346009808,1734622987611,-150.0,0.00024247,2]
[346009809,1734622987638,-150.0,0.00024247,2]
[346009810,1734622987664,-150.0,0.00024252,2]
[346009811,1734622987691,-150.0,0.00024253,2]
[346009812,1734622987719,-150.0,0.00024254,2]
[346009813,1734622987745,-150.0,0.00024257,2]
[346009814,1734622987773,-150.0,0.00024257,2]
[346009815,1734622987798,-150.0,0.00024258,2]
[346009816,1734622987825,-150.0,0.00024259,2]
[346009817,1734622987851,-150.0,0.00024268,2]
[346009818,1734622987878,-150.0,0.00024269,2]
[346009819,1734622987903,-150.0,0.00024271,2]
[346009820,1734622987929,-150.0,0.00024272,2]
[346009821,1734622987954,-150.0,0.00024277,2]
[346009822,1734622987978,-15134.69560056,0.0002428,2]
[346009823,1734622988004,-150.0,0.00024285,2]
[346009824,1734622988033,-276.04581,0.00024288,7]
[346009825,1734622988060,-150.0,0.0002429,2]
[346009826,1734622988087,-150.0,0.0002429,2]
[346009827,1734622988114,-150.0,0.00024293,2]
[346009828,1734622988138,-4847.75904831,0.000243,7]
[346009829,1734622988162,-1600.0,0.000243,8]
[346009830,1734622988190,-150.0,0.00024301,2]
[346009831,1734622988214,-151.12080696,0.00024301,2]
[346009832,1734622988237,-500.0,0.00024303,2]
[346009833,1734622988265,-150.0,0.00024306,2]
[346009834,1734622988296,-150.0,0.00024311,2]
[346009835,1734622988323,-150.0,0.00024318,2]
[346009836,1734622988350,-150.0,0.00024319,2]
[346009837,1734622988378,-150.0,0.00024321,2]
[346009838,1734622988405,-150.0,0.00024325,2]
[346009839,1734622988432,-150.0,0.00024337,2]
[346009840,1734622988457,-150.0,0.00024347,2]
[346009841,1734622988484,-150.0,0.00024348,2]
[346009842,1734622988511,-150.0,0.00024348,2]
[346009843,1734622988542,-150.0,0.00024349,2]
[346009844,1734622988569,-150.0,0.0002435,2]
[346009845,1734622988595,-150.0,0.0002435,2]
[346009846,1734622988621,-150.0,0.00024351,2]
[346009847,1734622988647,-150.0,0.00024351,2]
[346009848,1734622988673,-150.0,0.00024351,2]
[346009849,1734622988699,-150.0,0.00024352,2]
[346009850,1734622988727,-150.0,0.00024354,2]
[346009851,1734622988752,-150.0,0.00024355,2]
[346009852,1734622988782,-150.0,0.00024357,2]
[346009853,1734622988807,-13560.91500289,0.00024363,2]
[346009854,1734622988833,-150.0,0.00024363,2]
[346009855,1734622988857,-173.14886853,0.00024364,10]
[346009856,1734622988883,-150.0,0.00024367,2]
[346009857,1734622988910,-150.0,0.0002437,2]
[346009858,1734622988936,-150.0,0.00024379,2]
[346009859,1734622988962,-150.0,0.0002438,2]
[346009860,1734622988988,-560.36,0.00024381,4]
[346009861,1734622989019,-500.0,0.00024381,4]
[346009862,1734622989044,-500.0,0.00024381,4]
[346009863,1734622989071,-903.37,0.00024381,4]
[346009864,1734622989097,-500.0,0.00024381,4]
[346009865,1734622989121,-578.46,0.00024381,4]
[346009866,1734622989147,-553.31956283,0.00024381,4]
[346009867,1734622989172,-500.0,0.00024381,4]
[346009868,1734622989199,-500.0,0.00024381,4]
[346009869,1734622989225,-500.0,0.00024381,4]
[346009870,1734622989251,-500.0,0.00024381,4]
[346009871,1734622989282,-646.23,0.00024382,4]
[346009872,1734622989307,-500.0,0.00024382,4]
[346009873,1734622989332,-500.0,0.00024382,4]
[346009874,1734622989357,-500.0,0.00024382,4]
[346009875,1734622989383,-1342.54,0.00024382,4]
[346009876,1734622989410,-659.49,0.00024382,4]
[346009877,1734622989438,-1281.1,0.00024382,4]
[346009878,1734622989463,-500.0,0.00024382,4]
[346009879,1734622989490,-500.0,0.00024382,4]
[346009880,1734622989519,-500.0,0.00024382,4]
[346009881,1734622989545,-500.0,0.00024382,4]
[346009882,1734622989571,-500.0,0.00024382,4]
[346009883,1734622989597,-500.0,0.00024382,4]
[346009884,1734622989622,-500.0,0.00024383,2]
[346009885,1734622989646,-500.0,0.00024383,2]
[346009886,1734622989670,-500.0,0.00024383,4]
[346009887,1734622989696,-150.0,0.00024383,2]
[346009888,1734622989725,-669.0,0.00024383,4]
[346009889,1734622989749,-500.0,0.00024383,4]
[346009890,1734622989774,-500.0,0.00024383,4]
[346009891,1734622989800,-568.67,0.00024383,4]
[346009892,1734622989825,-500.0,0.00024383,4]
[346009893,1734622989850,-663.68,0.00024383,4]
[346009894,1734622989875,-500.0,0.00024383,4]
[346009895,1734622989900,-500.0,0.00024383,4]
[346009896,1734622989925,-711.82,0.00024383,4]
[346009897,1734622989951,-500.0,0.00024383,4]
[346009898,1734622989975,-500.0,0.00024383,4]
[346009899,1734622990000,-500.0,0.00024383,4]
[346009900,1734622990028,-500.0,0.00024383,4]
[346009901,1734622990054,-888.75,0.00024383,4]
[346009902,1734622990080,-500.0,0.00024383,4]
[346009903,1734622990105,-500.0,0.00024383,4]
[346009904,1734622990131,-500.0,0.00024383,4]
[346009905,1734622990156,-516.95,0.00024383,4]
[346009906,1734622990182,-993.33,0.00024383,4]
[346009907,1734622990208,-1538.15,0.00024383,4]
[346009908,1734622990237,-150.0,0.00024384,2]
[346009909,1734622990266,-150.0,0.00024385,2]
[346009910,1734622990293,-150.0,0.00024385,2]
[346009911,1734622990322,-150.0,0.00024389,2]
[346009912,1734622990351,-150.0,0.0002439,2]
[346009913,1734622990378,-150.0,0.00024393,2]
[346009914,1734622990405,-150.0,0.00024395,2]
[346009915,1734622990437,-150.0,0.00024398,2]
[346009916,1734622990467,-150.0,0.00024398,2]
[346009917,1734622990495,-150.0,0.00024398,2]
[346009918,1734622990528,-300.0,0.000244,8]
[346009919,1734622990555,-300.0,0.000244,8]
[346009920,1734622990587,-150.0,0.000244,2]
[346009921,1734622990615,-150.0,0.000244,2]
[346009922,1734622990644,-150.0,0.00024407,2]
[346009923,1734622990672,-150.0,0.00024408,2]
[346009924,1734622990698,-1266.33,0.0002441,7]
[346009925,1734622990725,-1266.33,0.0002441,7]
[346009926,1734622990750,-1266.33,0.0002441,7]
[346009927,1734622990781,-1266.33,0.0002441,7]
[346009928,1734622990807,-1266.33,0.0002441,7]
[346009929,1734622990832,-1266.33,0.0002441,7]
[346009930,1734622990857,-1266.33,0.0002441,7]
[346009931,1734622990882,-1266.33,0.0002441,7]
[346009932,1734622990908,-1266.33,0.0002441,7]
[346009933,1734622990934,-1266.33,0.0002441,7]
[346009934,1734622990958,-1266.33,0.0002441,7]
[346009935,1734622990984,-1266.33,0.0002441,7]
[346009936,1734622991008,-1266.33,0.0002441,7]
[346009937,1734622991040,-1266.33,0.0002441,7]
[346009938,1734622991066,-1266.33,0.0002441,7]
[346009939,1734622991092,-1266.33,0.0002441,7]
[346009940,1734622991120,-1266.33,0.0002441,7]
[346009941,1734622991145,-1266.33,0.0002441,7]
[346009942,1734622991354,-1266.33,0.0002441,7]
[346009943,1734622991386,-1266.33,0.0002441,7]
[346009944,1734622991413,-1266.33,0.0002441,7]
[346009945,1734622991440,-1266.33,0.0002441,7]
[346009946,1734622991465,-1266.33,0.0002441,7]
[346009947,1734622991491,-1266.39,0.0002441,7]
[346009948,1734622991524,-150.0,0.00024413,2]
[346009949,1734622991551,-150.0,0.00024413,2]
[346009950,1734622991578,-150.0,0.00024416,2]
[346009951,1734622991604,-2000.0,0.00024419,120]
[346009952,1734622991629,-202.307845,0.00024419,120]
[346009953,1734622991656,-150.0,0.00024422,2]
[346009954,1734622991683,-150.0,0.00024423,2]
[346009955,1734622991712,-150.0,0.00024425,2]
[346009956,1734622991740,-150.0,0.0002443,2]
[346009957,1734622991769,-500.0,0.00024431,2]
[346009958,1734622991797,-150.0,0.00024432,2]
[346009959,1734622991825,-150.0,0.00024437,2]
[346009960,1734622991850,-900.0,0.00024439,9]
[346009961,1734622991875,-900.0,0.00024439,9]
[346009962,1734622991900,-900.0,0.00024439,9]
[346009963,1734622991925,-900.0,0.00024439,9]
[346009964,1734622991951,-900.0,0.00024439,9]
[346009965,1734622991992,-900.0,0.00024439,9]
[346009966,1734622992024,-150.0,0.00024439,2]
[346009967,1734622992056,-150.0,0.00024443,2]
[346009968,1734622992087,-150.0,0.00024447,2]
[346009969,1734622992119,-150.0,0.00024448,2]
[346009970,1734622992148,-150.0,0.00024451,2]
[346009971,1734622992182,-150.0,0.00024452,2]
[346009972,1734622992212,-150.0,0.00024453,2]
[346009973,1734622992238,-200.0,0.00024454,2]
[346009974,1734622992270,-150.0,0.00024455,2]
[346009975,1734622992299,-150.0,0.00024459,2]
[346009976,1734622992329,-150.0,0.00024461,2]
[346009977,1734622992356,-150.0,0.00024463,2]
[346009978,1734622992385,-150.0,0.00024465,2]
[346009979,1734622992419,-502.61,0.00024467,2]
[346009980,1734622992443,-150.0,0.00024469,2]
[346009981,1734622992473,-150.0,0.00024471,2]
[346009982,1734622992503,-150.0,0.00024472,2]
[346009983,1734622992535,-150.0,0.00024474,2]
[346009984,1734622992563,-150.0,0.00024476,2]
[346009985,1734622992590,-337.47,0.00024476,2]
[346009986,1734622992619,-150.0,0.00024477,2]
[346009987,1734622992646,-462.7431675,0.00024478,2]
[346009988,1734622992676,-150.0,0.00024478,2]
[346009989,1734622992711,-150.0,0.00024487,2]
[346009990,1734622992738,-276.04581,0.00024488,7]
[346009991,1734622992764,-2000.0,0.0002449,2]
[346009992,1734622992794,-696.14124262,0.0002449,2]
[346009993,1734622992820,-21253.48070735,0.000245,2]
[346009994,1734622992846,-1000.0,0.000245,10]
[346009995,1734622992871,-1938.95907377,0.000245,2]
[346009996,1734622992896,-110000.0,0.000245,7]
[346009997,1734622992921,-30000.0,0.000245,2]
[346009998,1734622992946,-51542.0,0.000245,2]
[346009999,1734622992972,-64194.71172131,0.000245,2]
[346010000,1734622992996,-26330.45,0.000245,2]
[346010001,1734622993023,-2117.479999,0.000245,3]
[346010002,1734622993049,-30616.65849852,0.000245,2]
[346010003,1734622993073,-2000.0,0.000245,2]
[346010004,1734622993097,-2117.27,0.000245,2]
[346010005,1734622993122,-300.0,0.000245,8]
[346010006,1734622993147,-23678.04596166,0.000245,2]
[346010007,1734622993172,-300.0,0.000245,8]
[346010008,1734622993196,-250.0,0.000245,2]
[346010009,1734622993221,-250.0,0.000245,2]
[346010010,1734622993245,-250.0,0.000245,2]
[346010011,1734622993273,-250.0,0.000245,2]
[346010012,1734622993298,-250.0,0.000245,2]
[346010013,1734622993323,-250.0,0.000245,2]
[346010014,1734622993348,-250.0,0.000245,2]
[346010015,1734622993372,-250.0,0.000245,2]
[346010016,1734622993397,-250.0,0.000245,2]
[346010017,1734622993423,-250.0,0.000245,2]
[346010018,1734622993451,-250.0,0.000245,2]
[346010019,1734622993478,-250.0,0.000245,2]
[346010020,1734622993503,-250.0,0.000245,2]
[346010021,1734622993532,-250.0,0.000245,2]
[346010022,1734622993557,-250.0,0.000245,2]
[346010023,1734622993582,-250.0,0.000245,2]
[346010024,1734622993607,-250.0,0.000245,2]
[346010025,1734622993631,-250.0,0.000245,2]